bitfinex-derivatives/quotes_SOLF0:USTF0_20260203
["timestamp","ask_amount","ask_price","bid_price","bid_amount"]
[1770119794718,8.7319,103.18,103.13,42.36337527]
[1770119795916,371.54737649,103.19,103.13,51.09907527]
[1770119795917,380.27827649,103.19,103.13,51.09907527]
[1770119796113,411.38912816,103.19,103.13,51.09907527]
[1770119797017,42.24912816,103.19,103.15,42.36337527]
[1770119797218,44.65650465,103.21,103.15,42.36337527]
[1770119798316,44.65650465,103.21,103.15,51.09757527]
[1770119799120,42.24912816,103.21,103.15,51.09757527]
[1770119802520,42.24912816,103.21,103.16,51.09677527]
[1770119803414,42.24912816,103.18,103.13,42.36337527]
[1770119803920,44.65650465,103.18,103.13,42.36337527]
[1770119804421,44.65650465,103.18,103.13,51.09847527]
[1770119804624,42.24912816,103.18,103.13,51.09847527]
[1770119820327,42.24912816,103.18,103.14,43.05446588]
[1770119820933,42.24912816,103.18,103.14,51.78936588]
[1770119821733,50.98092816,103.18,103.14,43.05446588]
[1770119821934,42.24912816,103.18,103.14,43.05446588]
[1770119823437,44.65650465,103.18,103.14,43.05446588]
[1770119827035,44.65650465,103.18,103.12,51.79106588]
[1770119827242,48.43877996,103.16,103.12,51.79106588]
[1770119831841,48.43877996,103.16,103.12,43.05446588]
[1770119832643,46.03140347,103.16,103.12,51.79116588]
[1770119833038,54.76330347,103.18,103.12,51.79116588]
[1770119834335,57.17004057,103.18,103.12,51.79116588]
[1770119836744,54.76330347,103.18,103.12,54.19790298]
[1770119837044,54.76330347,103.18,103.13,43.05446588]
[1770119840641,57.17004057,103.18,103.13,43.05446588]
[1770119840844,44.29361072,103.16,103.11,44.01830007]
[1770119843047,55.43384782,103.16,103.11,44.01830007]
[1770119843847,53.02711072,103.16,103.11,44.01830007]
[1770119844550,44.29361072,103.14,103.09,44.01830007]
[1770119845449,46.70034782,103.16,103.09,44.01830007]
[1770119846346,53.02791072,103.15,103.09,52.75760007]
[1770119849250,55.43464782,103.15,103.09,52.75760007]
[1770119849753,44.29361072,103.14,103.09,52.75760007]
[1770119855957,44.29361072,103.14,103.1,52.75670007]
[1770119856857,8.7343,103.15,103.1,52.75670007]
[1770119857259,53.02791072,103.15,103.1,52.75670007]
[1770119858554,44.29361072,103.15,103.1,52.75670007]
[1770119859363,44.29361072,103.13,103.09,52.75750007]
[1770119859558,2.4067371,103.12,103.08,283.3485021]
[1770119859760,55.43714782,103.12,103.08,283.3485021]
[1770119859958,44.29361072,103.11,103.07,44.01830007]
[1770119861864,53.03141072,103.11,103.07,44.01830007]
[1770119862066,46.70034782,103.1,103.04,44.01830007]
[1770119863364,44.29361072,103.09,103.04,44.01830007]
[1770119865367,53.03301072,103.09,103.04,52.76190007]
[1770119866468,44.29361072,103.09,103.04,52.76190007]
[1770119867673,44.29361072,103.09,103.05,52.76090007]
[1770119889887,48.42444045,103.07,103.03,44.3321583]
[1770119890093,50.83117755,103.07,103.01,44.3321583]
[1770119891294,59.57237755,103.07,103.02,53.0773583]
[1770119891690,59.57237755,103.07,103.0,46.7388954]
[1770119892191,50.83117755,103.06,103.0,44.3321583]
[1770119892390,50.83117755,103.06,103.01,8.746]
[1770119893190,48.42444045,103.06,103.01,53.0781583]
[1770119893392,59.57307755,103.06,103.01,44.3321583]
[1770119893589,50.83117755,103.04,102.99,336.3188646]
[1770119894595,2.4067371,103.03,102.99,291.9867063]
[1770119894786,50.83117755,103.03,102.99,291.9867063]
[1770119894990,50.83117755,103.03,102.98,53.0799583]
[1770119895193,48.42444045,103.03,102.98,53.0799583]
[1770119897192,50.83784085,103.03,102.98,53.0799583]
[1770119897400,48.42444045,103.03,102.98,53.0799583]
[1770119897996,48.42444045,103.06,103.0,46.7455587]
[1770119898298,48.42444045,103.04,103.0,44.3321583]
[1770119898495,50.83784085,103.04,102.98,44.3321583]
[1770119898693,50.83784085,103.03,102.97,343.91278066]
[1770119900195,50.83784085,103.03,102.97,352.66158066]
[1770119901101,48.42444045,103.03,102.97,352.66158066]
[1770119901303,50.83784085,103.03,102.97,352.66158066]
[1770119902203,48.42444045,103.03,102.98,8.7484]
[1770119903099,48.42444045,103.03,102.98,54.57289724]
[1770119905098,47.31285775,103.01,102.96,54.57409724]
[1770119905303,47.31285775,103.01,102.96,45.82449724]
[1770119906095,47.31285775,103.01,102.97,54.57399724]
[1770119907205,47.31285775,103.03,102.98,54.57309724]
[1770119909408,49.72625815,103.02,102.98,8.7486]
[1770119909704,49.72625815,103.02,102.95,369.64449724]
[1770119909909,49.72625815,103.01,102.95,45.82449724]
[1770119911203,58.47265815,103.01,102.95,54.57559724]
[1770119911505,58.47265815,103.01,102.92,375.48449724]
[1770119911506,136.066,103.0,102.92,375.48449724]
[1770119911701,49.72625815,102.97,102.9,54.57929724]
[1770119911905,49.72625815,102.97,102.9,45.82449724]
[1770119912203,49.72625815,102.97,102.91,45.82449724]
[1770119912905,47.31285775,102.96,102.91,45.82449724]
[1770119914202,49.72625815,102.96,102.91,45.82449724]
[1770119914407,49.72625815,102.96,102.91,54.57899724]
[1770119914611,58.47495815,102.98,102.91,48.23789764]
[1770119914907,47.31285775,102.98,102.91,48.23789764]
[1770119915310,47.31285775,102.98,102.93,54.57739724]
[1770119916004,49.72625815,102.97,102.91,45.82449724]
[1770119916509,2.4134004,102.96,102.91,45.82449724]
[1770119916714,49.72625815,102.97,102.91,45.82449724]
[1770119917909,49.72625815,102.97,102.91,54.57909724]
[1770119918814,49.72625815,102.96,102.91,45.82449724]
[1770119919111,49.72625815,102.95,102.89,54.58059724]
[1770119920107,47.31285775,102.95,102.9,45.82449724]
[1770119920412,47.31285775,102.97,102.91,45.82449724]
[1770119920609,47.31285775,102.97,102.93,8.7529]
[1770119921108,49.72625815,102.99,102.93,54.57739724]
[1770119921410,47.31285775,102.99,102.94,8.752]
[1770119922508,49.72625815,102.99,102.94,8.752]
[1770119923010,49.72625815,102.99,102.93,54.57739724]
[1770119923415,49.72625815,102.96,102.91,45.82449724]
[1770119924515,136.0679,103.0,102.91,54.57859724]
[1770119924516,58.47515815,102.98,102.91,54.57859724]
[1770119924912,47.31285775,102.96,102.91,54.57859724]
[1770119929107,47.31285775,102.96,102.91,45.82449724]
[1770119929314,47.31285775,102.96,102.92,8.7537]
[1770119930011,11.1622004,102.98,102.92,54.57819724]
[1770119930012,58.47505815,102.98,102.92,54.57819724]
[1770119931018,47.31285775,102.98,102.93,8.7528]
[1770119931319,47.31285775,102.98,102.93,54.23238414]
[1770119932923,49.72625815,102.98,102.93,8.7528]
[1770119937728,47.31285775,102.98,102.93,8.7528]
[1770119939232,49.72625815,102.98,102.93,8.7528]
[1770119939937,47.31285775,102.98,102.93,8.7528]
[1770119940130,11.1614004,102.99,102.93,56.80525481]
[1770119940336,8.7468,103.01,102.96,48.05245481]
[1770119940528,48.34148586,103.01,102.96,48.05245481]
[1770119940733,50.75488626,102.99,102.93,48.05245481]
[1770119941234,57.09018586,102.98,102.93,56.80525481]
[1770119941429,59.50358626,102.98,102.93,56.80525481]
[1770119943337,48.34148586,102.98,102.93,56.80525481]
[1770119943737,48.34148586,102.98,102.93,59.21865521]
[1770119944332,48.34148586,102.98,102.93,56.80525481]
[1770119945034,48.34148586,103.0,102.94,56.80385481]
[1770119946434,57.08848586,103.0,102.94,56.80385481]
[1770119946938,59.50288626,102.99,102.94,48.05245481]
[1770119949640,50.75488626,102.98,102.93,8.7527]
[1770119950138,48.34148586,102.98,102.94,8.7519]
[1770119951737,48.34148586,102.98,102.93,56.80535481]
[1770119952734,57.09028586,102.98,102.93,48.05245481]
[1770119955242,59.50368626,102.98,102.93,48.05245481]
[1770119955438,50.75488626,102.98,102.93,56.80535481]
[1770119955640,48.34148586,102.96,102.91,48.05245481]
[1770119956039,57.09188586,102.96,102.89,59.22215521]
[1770119956342,59.50933014,102.96,102.89,56.80875481]
[1770119958047,57.09278586,102.95,102.89,56.80875481]
[1770119958947,57.09278586,102.95,102.89,48.05245481]
[1770119959851,59.51023014,102.95,102.89,56.80865481]
[1770119961552,59.51023014,102.95,102.89,48.05245481]
[1770119964052,48.34148586,102.95,102.89,56.80845481]
[1770119967157,50.75893014,102.95,102.89,56.80845481]
[1770119968056,50.75893014,102.95,102.9,8.7555]
[1770119968450,48.34148586,102.95,102.9,57.51836022]
[1770119969253,48.34148586,102.95,102.9,48.76286022]
[1770119969457,50.75893014,102.95,102.9,48.76286022]
[1770119970055,50.75893014,102.95,102.89,8.7563]
[1770119970261,46.51795679,102.94,102.89,8.7563]
[1770119970759,44.10051251,102.93,102.88,341.84740974]
[1770119978160,8.752,102.95,102.89,48.76286022]
[1770119978369,52.85251251,102.95,102.89,48.76286022]
[1770119978860,44.10051251,102.95,102.9,57.51826022]
[1770119980568,11.16804428,102.96,102.91,57.51736022]
[1770119980761,46.51795679,102.96,102.91,57.51736022]
[1770119980968,44.10051251,102.96,102.91,57.51736022]
[1770119984371,46.51795679,102.96,102.91,57.51736022]
[1770119987375,2.41744428,102.97,102.92,57.51656022]
[1770119987672,44.10051251,102.97,102.92,57.51656022]
[1770119988274,55.26605679,102.99,102.93,57.51556022]
[1770119988474,44.10051251,102.98,102.93,57.51556022]
[1770119990177,44.10051251,102.97,102.92,8.7536]
[1770119990378,44.10051251,102.97,102.92,55.5264335]
[1770119990879,55.26765679,102.97,102.92,55.5264335]
[1770119991779,47.54899163,102.96,102.92,46.7728335]
[1770119992378,56.29959163,102.96,102.9,57.10531684]
[1770119992576,48.72588605,102.95,102.9,57.10531684]
[1770119994074,46.30844177,102.95,102.9,57.10531684]
[1770119995676,48.72588605,102.95,102.9,57.10531684]
[1770120000483,46.30844177,102.96,102.91,57.10441684]
[1770120001386,11.16714428,102.97,102.91,57.10441684]
[1770120002487,57.47518605,102.98,102.93,48.34981684]
[1770120003890,48.72588605,102.96,102.91,57.10421684]
[1770120004283,11.16714428,102.97,102.91,57.10421684]
[1770120004481,55.05814177,102.97,102.91,57.10421684]
[1770120004782,46.30844177,102.97,102.92,48.34981684]
[1770120006386,48.72588605,102.99,102.94,48.34981684]
[1770120006590,48.72588605,102.99,102.91,48.34981684]
[1770120006786,48.72588605,102.96,102.89,48.34981684]
[1770120006992,48.72588605,102.95,102.89,48.34981684]
[1770120007192,48.72588605,102.94,102.89,48.34981684]
[1770120007590,2.41744428,102.95,102.9,57.10521684]
[1770120007791,48.72588605,102.95,102.9,48.34981684]
[1770120009089,57.47708605,102.95,102.9,48.34981684]
[1770120016402,57.47723353,102.95,102.9,48.34981684]
[1770120018000,48.72603353,102.95,102.9,57.10531684]
[1770120018999,57.47763353,102.95,102.9,48.34981684]
[1770120019193,2.41759176,102.94,102.9,48.34981684]
[1770120023006,56.98438105,102.96,102.9,57.10521684]
[1770120024300,413.07618929,102.98,102.92,46.16864914]
[1770120024501,45.81618929,102.98,102.92,46.16864914]
[1770120025005,45.81618929,102.98,102.92,57.3392409]
[1770120025900,45.81618929,102.98,102.93,54.92154914]
[1770120026101,424.34088105,103.0,102.93,48.5862409]
[1770120026307,54.56328929,103.0,102.93,48.5862409]
[1770120026803,48.23378105,103.0,102.95,46.16864914]
[1770120027003,45.81618929,103.0,102.95,46.16864914]
[1770120029408,45.81618929,103.0,102.95,54.91984914]
[1770120029803,424.47908105,103.02,102.95,46.16864914]
[1770120029999,45.81618929,103.02,102.97,46.16864914]
[1770120030808,45.81618929,103.02,102.97,54.91784914]
[1770120031009,305.67618929,103.04,102.99,46.16864914]
[1770120032305,45.81618929,103.03,102.99,46.16864914]
[1770120035207,426.63658105,103.05,102.99,46.16864914]
[1770120035509,45.81618929,103.04,102.99,46.16864914]
[1770120036908,2.41759176,103.03,102.97,46.16864914]
[1770120037113,48.23378105,103.03,102.97,46.16864914]
[1770120037508,54.56068929,103.03,102.97,46.16864914]
[1770120037714,48.23378105,103.02,102.97,46.16864914]
[1770120037914,48.23378105,103.01,102.95,54.91974914]
[1770120040417,45.81618929,103.01,102.96,54.91904914]
[1770120040618,48.23378105,103.03,102.96,57.3366409]
[1770120040808,45.81618929,103.03,102.96,48.5862409]
[1770120041417,54.56128929,103.03,102.97,8.7494]
[1770120041609,54.56128929,103.03,102.97,54.91804914]
[1770120041914,54.56128929,103.03,102.95,46.16864914]
[1770120041915,56.98148105,103.0,102.95,46.16864914]
[1770120042114,48.23378105,102.97,102.91,46.16864914]
[1770120042418,48.23378105,102.95,102.89,46.16864914]
[1770120043318,48.23378105,102.95,102.89,54.92494914]
[1770120045019,8.7505,102.96,102.9,54.92404914]
[1770120045316,48.23378105,102.97,102.9,48.5862409]
[1770120045519,48.23378105,102.99,102.92,48.5862409]
[1770120045719,45.81618929,102.99,102.92,48.5862409]
[1770120046413,45.81618929,102.99,102.94,46.16864914]
[1770120046613,48.23378105,103.01,102.94,48.5862409]
[1770120047410,56.97998105,103.01,102.94,57.3382409]
[1770120048019,48.23378105,103.01,102.95,54.91964914]
[1770120049321,45.81618929,103.01,102.95,54.91964914]
[1770120051123,45.81618929,103.01,102.96,8.7504]
[1770120051820,45.81618929,103.01,102.95,54.91974914]
[1770120052025,49.54106329,102.99,102.93,44.38758806]
[1770120052524,2.41759176,102.98,102.93,53.14018806]
[1770120052728,50.83011,102.98,102.93,53.14018806]
[1770120054324,48.41251824,102.98,102.93,53.14018806]
[1770120054531,48.41251824,102.98,102.94,8.752]
[1770120055028,48.41251824,102.98,102.93,53.14038806]
[1770120058233,50.83011,102.98,102.92,8.7538]
[1770120059026,50.83011,102.97,102.92,8.7538]
[1770120059227,48.41251824,102.97,102.92,56.93960084]
[1770120060933,48.41251824,102.97,102.93,8.7528]
[1770120061631,59.57971,102.97,102.9,48.18580084]
[1770120062434,59.57971,102.97,102.91,8.7545]
[1770120063128,59.58051,102.96,102.91,8.7545]
[1770120063329,50.83011,102.95,102.9,48.18580084]
[1770120064235,59.58141,102.95,102.9,48.18580084]
[1770120065133,48.41251824,102.95,102.9,56.94080084]
[1770120066334,57.16381824,102.95,102.9,48.18580084]
[1770120066638,59.58141,102.95,102.89,56.94210084]
[1770120067635,57.16471824,102.94,102.89,48.18580084]
[1770120067838,48.41251824,102.94,102.89,48.18580084]
[1770120068342,48.41251824,102.94,102.9,8.7555]
[1770120071139,436.88061,102.96,102.9,56.94130084]
[1770120071443,436.88061,102.96,102.91,56.94040084]
[1770120071444,429.37251824,102.96,102.91,56.94040084]
[1770120074849,440.54051,102.96,102.91,48.18580084]
[1770120075049,50.83011,102.95,102.9,8.7553]
[1770120076858,59.58141,102.95,102.9,8.7553]
[1770120077854,59.58141,102.95,102.89,56.94200084]
[1770120078053,57.16511824,102.94,102.89,56.94200084]
[1770120079055,48.41251824,102.94,102.89,56.94200084]
[1770120080457,57.16461824,102.94,102.89,56.94200084]
[1770120082159,56.16601246,102.93,102.88,8.7571]
[1770120082358,56.16601246,102.93,102.88,57.70191516]
[1770120083757,58.58376688,102.93,102.87,8.7579]
[1770120083959,445.80376688,102.93,102.87,57.70271516]
[1770120084165,47.41291246,102.92,102.87,57.70271516]
[1770120084353,47.41291246,102.92,102.87,67.4490098]
[1770120084553,56.16681246,102.92,102.86,8.7587]
[1770120084758,47.41291246,102.91,102.86,57.70351516]
[1770120086448,49.83066688,102.91,102.85,8.7596]
[1770120086954,437.45066688,102.91,102.85,48.94481516]
[1770120087153,49.83066688,102.91,102.85,48.94481516]
[1770120087453,47.41291246,102.91,102.87,8.758]
[1770120090959,47.41291246,102.91,102.86,57.70351516]
[1770120093358,49.83066688,102.91,102.86,57.70351516]
[1770120095962,58.58536688,102.91,102.86,57.70351516]
[1770120096361,446.28536688,102.91,102.86,57.70351516]
[1770120096558,47.41291246,102.9,102.86,57.70351516]
[1770120097164,390.11775442,102.91,102.86,57.70351516]
[1770120097365,437.53066688,102.91,102.86,57.70351516]
[1770120098262,49.83066688,102.91,102.86,57.70351516]
[1770120098462,446.30536688,102.91,102.86,57.70351516]
[1770120100268,58.58536688,102.91,102.86,57.70351516]
[1770120100471,446.30536688,102.91,102.86,57.70351516]
[1770120101270,47.41291246,102.9,102.86,57.70351516]
[1770120101473,47.41291246,102.9,102.86,48.94481516]
[1770120101673,49.83066688,102.89,102.85,8.7591]
[1770120103676,396.4758,102.9,102.86,57.70341516]
[1770120103677,435.13291246,102.9,102.86,57.70341516]
[1770120103872,47.41291246,102.9,102.86,57.70341516]
[1770120104871,435.15291246,102.92,102.87,57.70271516]
[1770120105273,47.41291246,102.96,102.9,48.94481516]
[1770120105575,47.41291246,102.98,102.92,51.36256958]
[1770120106279,49.83066688,102.97,102.92,48.94481516]
[1770120108080,49.83066688,102.96,102.9,57.70021516]
[1770120108278,47.41291246,102.94,102.9,8.7554]
[1770120109775,47.41291246,102.94,102.89,48.94481516]
[1770120111279,47.41291246,102.94,102.89,57.70091516]
[1770120111475,447.80293136,102.96,102.89,48.94481516]
[1770120111677,445.38407694,102.97,102.91,45.44241631]
[1770120112778,445.38407694,102.97,102.91,56.61457073]
[1770120113183,57.70407694,102.97,102.91,56.61457073]
[1770120116087,53.20028262,102.96,102.91,8.7544]
[1770120116891,53.20128262,102.95,102.9,8.7554]
[1770120118688,53.20128262,102.95,102.89,57.92381398]
[1770120118882,46.86763704,102.94,102.87,49.16771398]
[1770120119086,44.44988262,102.92,102.87,49.16771398]
[1770120119386,44.44988262,102.92,102.87,51.5854684]
[1770120119582,44.44988262,102.92,102.87,49.16771398]
[1770120120387,44.44988262,102.92,102.87,57.92491398]
[1770120120686,44.44988262,102.92,102.87,8.7572]
[1770120120988,46.86763704,102.92,102.85,51.5854684]
[1770120121484,53.20378262,102.92,102.86,49.16771398]
[1770120121690,53.20378262,102.92,102.86,51.5854684]
[1770120122086,53.20378262,102.92,102.86,57.92651398]
[1770120122387,53.20378262,102.92,102.86,49.16771398]
[1770120123284,53.20378262,102.92,102.87,8.758]
[1770120123490,53.20378262,102.92,102.86,49.16771398]
[1770120124389,53.20378262,102.92,102.86,57.92641398]
[1770120124690,44.44988262,102.92,102.86,49.16771398]
[1770120126193,44.44988262,102.89,102.84,8.7605]
[1770120127286,44.44988262,102.89,102.82,187.8773684]
[1770120127287,55.62413704,102.89,102.83,8.7613]
[1770120127493,44.44988262,102.88,102.81,51.5854684]
[1770120127694,46.86763704,102.88,102.81,51.5854684]
[1770120128194,44.44988262,102.88,102.81,51.5854684]
[1770120128392,53.20708262,102.88,102.82,57.92991398]
[1770120131189,53.20808262,102.87,102.82,49.16771398]
[1770120136897,390.17775442,102.88,102.82,51.5854684]
[1770120136898,387.76,102.88,102.82,51.5854684]
[1770120137304,44.44988262,102.88,102.82,51.5854684]
[1770120137503,46.86763704,102.88,102.82,49.16771398]
[1770120137700,55.62493704,102.88,102.83,8.7614]
[1770120138404,55.62786595,102.88,102.83,8.7614]
[1770120140106,44.44988262,102.87,102.83,8.7614]
[1770120144612,44.44988262,102.87,102.83,53.60521027]
[1770120146306,44.44988262,102.87,102.83,8.7614]
[1770120146702,53.20798262,102.87,102.82,8.7622]
[1770120146911,44.44988262,102.87,102.82,53.60601027]
[1770120147707,44.44988262,102.87,102.81,53.60671027]
[1770120147708,55.62936595,102.87,102.81,53.60671027]
[1770120147908,47.4937317,102.86,102.81,53.60671027]
[1770120149111,47.4937317,102.86,102.82,8.7621]
[1770120149314,47.4937317,102.86,102.81,47.2644936]
[1770120150012,47.4937317,102.86,102.83,8.7614]
[1770120150412,47.4937317,102.86,102.81,47.2644936]
[1770120150613,47.4937317,102.86,102.82,53.60591027]
[1770120154113,56.2527317,102.86,102.82,53.60591027]
[1770120156116,56.2527317,102.86,102.82,44.84381027]
[1770120156523,56.2527317,102.86,102.81,8.763]
[1770120156723,58.67341503,102.86,102.81,8.763]
[1770120156913,58.67341503,102.86,102.8,54.66001532]
[1770120156914,47.4937317,102.84,102.78,44.84381027]
[1770120157317,47.4937317,102.84,102.78,47.2644936]
[1770120158422,47.4937317,102.84,102.8,8.764]
[1770120163822,49.91441503,102.84,102.79,53.60841027]
[1770120165022,47.4937317,102.84,102.79,53.60841027]
[1770120165218,47.4937317,102.84,102.8,8.7639]
[1770120165422,49.91441503,102.82,102.76,24.00831234]
[1770120165623,49.91441503,102.8,102.75,44.84381027]
[1770120165822,49.91441503,102.8,102.73,44.84381027]
[1770120166324,2.42068333,102.79,102.74,8.7689]
[1770120166525,58.67911503,102.8,102.74,44.84381027]
[1770120167224,56.2586317,102.79,102.74,44.84381027]
[1770120167429,47.4937317,102.74,102.66,44.84381027]
[1770120167625,49.91441503,102.71,102.64,47.2644936]
[1770120167826,2.42068333,102.7,102.64,44.84381027]
[1770120168020,2.42068333,102.7,102.6,47.2644936]
[1770120168021,47.4937317,102.67,102.6,47.2644936]
[1770120168220,2.42068333,102.68,102.61,183.8440936]
[1770120168221,47.4937317,102.68,102.61,183.8440936]
[1770120168424,47.4937317,102.68,102.63,47.2644936]
[1770120168833,47.4937317,102.68,102.63,56.0428936]
[1770120169130,47.4937317,102.68,102.63,53.62221027]
[1770120169328,58.68711503,102.7,102.63,56.0428936]
[1770120169630,49.91441503,102.7,102.63,53.62221027]
[1770120169824,49.91441503,102.69,102.63,44.84381027]
[1770120170027,47.4937317,102.67,102.61,53.62331027]
[1770120170227,49.91441503,102.67,102.61,53.62331027]
[1770120171529,46.88481467,102.69,102.63,187.01402378]
[1770120171726,49.305498,102.69,102.63,48.03814045]
[1770120171930,46.88481467,102.69,102.63,48.03814045]
[1770120172830,49.305498,102.69,102.63,56.81634045]
[1770120174322,49.305498,102.69,102.62,2.42068333]
[1770120174323,49.305498,102.69,102.61,138.99318333]
[1770120174625,50.7215862,102.67,102.6,183.02422481]
[1770120175331,50.7215862,102.67,102.6,185.44490814]
[1770120175526,48.30090287,102.67,102.62,8.7791]
[1770120177831,48.30090287,102.67,102.63,8.7783]
[1770120178034,18.02430287,102.67,102.63,8.7783]
[1770120178331,18.02430287,102.67,102.61,185.43200814]
[1770120178332,2.42068333,102.66,102.61,8.7798]
[1770120178535,2.42068333,102.66,102.6,136.5952]
[1770120178836,2.42068333,102.7,102.65,8.7767]
[1770120179034,2.42068333,102.71,102.65,8.7767]
[1770120179631,2.42068333,102.71,102.66,8.7757]
[1770120180030,50.7215862,102.71,102.66,8.7757]
[1770120180332,48.30090287,102.71,102.67,8.7751]
[1770120180537,48.30090287,102.71,102.64,185.39060814]
[1770120180733,50.7215862,102.71,102.64,185.39060814]
[1770120181332,50.7215862,102.71,102.66,8.7759]
[1770120182731,48.30090287,102.71,102.66,8.7759]
[1770120182930,48.30090287,102.73,102.68,2.42068333]
[1770120183129,2.42068333,102.74,102.68,46.43002481]
[1770120183435,48.30090287,102.73,102.66,185.36520814]
[1770120183833,50.7215862,102.73,102.66,185.36520814]
[1770120184428,50.7215862,102.73,102.68,8.7735]
[1770120184634,48.30090287,102.75,102.69,48.85070814]
[1770120185133,48.30090287,102.75,102.71,8.7716]
[1770120185332,48.30090287,102.75,102.69,46.43002481]
[1770120185532,50.7215862,102.75,102.69,55.20272481]
[1770120185735,48.30090287,102.75,102.69,182.90462481]
[1770120185931,48.30090287,102.75,102.69,185.32530814]
[1770120186132,48.30090287,102.75,102.71,8.7716]
[1770120186334,48.30090287,102.77,102.71,48.85070814]
[1770120186536,48.30090287,102.77,102.69,136.4746]
[1770120186537,2.42068333,102.74,102.69,46.43002481]
[1770120186836,48.30090287,102.76,102.65,154.0702]
[1770120186837,50.7215862,102.73,102.66,46.43002481]
[1770120187032,50.7215862,102.7,102.64,46.43002481]
[1770120187240,50.7215862,102.7,102.6,136.5888]
[1770120187241,2.42068333,102.67,102.6,183.01882481]
[1770120187441,50.7215862,102.66,102.59,136.6085]
[1770120187637,2.42068333,102.65,102.59,136.6085]
[1770120187836,165.6198,102.71,102.61,136.5815]
[1770120187837,50.7215862,102.68,102.61,136.5815]
[1770120188033,48.30090287,102.68,102.62,136.5681]
[1770120188340,165.5908,102.74,102.65,8.7767]
[1770120188341,48.30090287,102.7,102.65,8.7767]
[1770120188642,205.32,102.72,102.65,182.95342481]
[1770120189438,205.32,102.72,102.65,46.43002481]
[1770120189643,205.32,102.72,102.63,182.98372481]
[1770120190037,8.7718,102.71,102.63,182.98372481]
[1770120190639,26.06710068,102.7,102.63,182.98372481]
[1770120191443,26.06710068,102.7,102.65,8.7767]
[1770120192643,24.53406066,102.69,102.63,55.20812481]
[1770120192939,24.53406066,102.69,102.63,46.43002481]
[1770120193143,24.53406066,102.69,102.64,8.7774]
[1770120194946,24.53406066,102.69,102.65,8.7767]
[1770120196548,24.53406066,102.69,102.62,136.5681]
[1770120196549,24.53406066,102.69,102.61,46.43002481]
[1770120196753,24.40896591,102.65,102.56,46.43002481]
[1770120196944,24.40896591,102.62,102.53,46.43002481]
[1770120197151,24.40896591,102.62,102.53,183.11322481]
[1770120197454,24.62842507,102.6,102.53,46.43002481]
[1770120197754,24.62842507,102.58,102.5,46.43002481]
[1770120198047,136.6104,102.59,102.5,46.43002481]
[1770120198048,24.62842507,102.57,102.5,136.7278]
[1770120198252,26.41847812,102.6,102.52,183.13162481]
[1770120199454,26.41847812,102.6,102.54,8.7859]
[1770120199653,26.41847812,102.6,102.52,183.13162481]
[1770120200156,35.19997812,102.6,102.52,46.43002481]
[1770120200457,26.2707734,102.59,102.5,179.07294519]
[1770120200754,26.2707734,102.57,102.5,8.7889]
[1770120201655,35.0544734,102.57,102.5,8.7889]
[1770120202952,26.2707734,102.57,102.5,8.7889]
[1770120204053,26.2707734,102.57,102.51,8.7887]
[1770120204752,27.66474933,102.59,102.51,51.13384519]
[1770120206046,27.66474933,102.59,102.52,51.13294519]
[1770120210451,27.66474933,102.59,102.53,51.13224519]
[1770120210665,29.15336391,102.64,102.55,42.34514519]
[1770120211056,29.15336391,102.63,102.55,42.34514519]
[1770120212259,166.10693699,102.57,102.5,44.04154765]
[1770120212460,166.10693699,102.57,102.48,42.34514519]
[1770120212461,29.47083699,102.55,102.48,42.34514519]
[1770120214064,29.47083699,102.55,102.48,51.13654519]
[1770120214566,8.7866,102.54,102.48,51.13654519]
[1770120215765,29.47083699,102.55,102.48,51.13654519]
[1770120216267,38.25703699,102.55,102.48,42.34514519]
[1770120216564,31.19047157,102.54,102.48,42.34514519]
[1770120217865,31.19047157,102.54,102.48,51.13634519]
[1770120220758,388.92,102.57,102.48,42.34514519]
[1770120220958,32.08601058,102.56,102.5,42.34514519]
[1770120221367,32.08601058,102.56,102.51,8.7887]
[1770120221570,8.7828,102.58,102.51,51.13384519]
[1770120221768,41.0384754,102.58,102.51,51.13384519]
[1770120222066,32.2556754,102.54,102.45,42.34514519]
[1770120222370,32.2556754,102.51,102.43,42.34514519]
[1770120222767,32.2556754,102.51,102.44,179.15134519]
[1770120222967,32.2556754,102.51,102.45,42.34514519]
[1770120223166,32.2556754,102.51,102.43,42.34514519]
[1770120223370,41.0445754,102.51,102.45,8.7937]
[1770120224168,32.2556754,102.51,102.46,8.7925]
[1770120224368,45.57423011,102.53,102.46,42.34514519]
[1770120225073,36.78673011,102.53,102.47,42.34514519]
[1770120225276,45.57243011,102.55,102.47,179.11234519]
[1770120226267,45.57243011,102.55,102.49,8.7905]
[1770120227869,8.7863,102.54,102.47,51.13724519]
[1770120228269,36.78673011,102.55,102.48,51.13604519]
[1770120229169,364.34,102.56,102.49,42.34514519]
[1770120229773,36.7422206,102.57,102.49,42.34514519]
[1770120230376,36.7422206,102.57,102.51,47.79228448]
[1770120232481,45.5260206,102.57,102.51,56.58098448]
[1770120232976,46.94786803,102.59,102.53,52.91338187]
[1770120233168,38.16566803,102.61,102.53,44.12628187]
[1770120233875,38.16566803,102.61,102.54,52.91218187]